[Event "*** Titled Tuesday Blitz"]
[Site "Chess.com"]
[Date "2021.03.30"]
[Round "9"]
[White "igorkovalenko"]
[Black "Eltaj_Safarli"]
[Result "0-1"]
[WhiteElo "2954"]
[BlackElo "2892"]
[TimeControl "180+1"]
[EndTime "11:48:11 PDT"]
[Termination "Eltaj_Safarli won by resignation"]

1. d4 {[%clk 0:03:00.9]} 1... Nf6 {[%clk 0:03:00]} 2. Nf3 {[%clk 0:03:01.8]}
2... g6 {[%clk 0:02:59.6]} 3. Nbd2 {[%clk 0:03:01.6]} 3... Bg7 {[%clk
0:02:59.2]} 4. e4 {[%clk 0:03:01.8]} 4... O-O {[%clk 0:02:58.6]} 5. Bd3 {[%clk
0:03:02.4]} 5... d6 {[%clk 0:02:57.1]} 6. O-O {[%clk 0:03:02.9]} 6... c5 {[%clk
0:02:57.7]} 7. dxc5 {[%clk 0:03:03.8]} 7... dxc5 {[%clk 0:02:58.6]} 8. Qe2
{[%clk 0:03:04.3]} 8... Nc6 {[%clk 0:02:58.7]} 9. c3 {[%clk 0:03:04.4]} 9... Qc7
{[%clk 0:02:57.4]} 10. Re1 {[%clk 0:02:57.9]} 10... Nh5 {[%clk 0:02:56.3]} 11.
g3 {[%clk 0:02:57.2]} 11... Bg4 {[%clk 0:02:50.9]} 12. Qe3 {[%clk 0:02:55.5]}
12... Rad8 {[%clk 0:02:47.1]} 13. Bc2 {[%clk 0:02:54.9]} 13... b6 {[%clk
0:02:40.2]} 14. Kg2 {[%clk 0:02:53.3]} 14... Qc8 {[%clk 0:02:39]} 15. Ng1 {[%clk
0:02:52.7]} 15... Nf6 {[%clk 0:02:33.4]} 16. h3 {[%clk 0:02:48.3]} 16... Be6
{[%clk 0:02:30.6]} 17. f4 {[%clk 0:02:43.5]} 17... Nd4 {[%clk 0:02:18.5]} 18.
Bd1 {[%clk 0:02:37.4]} 18... Nc6 {[%clk 0:02:06.2]} 19. Ndf3 {[%clk 0:02:30.9]}
19... Bc4 {[%clk 0:02:04.4]} 20. Bc2 {[%clk 0:02:30.8]} 20... e5 {[%clk
0:02:01.7]} 21. f5 {[%clk 0:02:23.8]} 21... Rfe8 {[%clk 0:02:00.2]} 22. g4
{[%clk 0:02:22.3]} 22... Qa6 {[%clk 0:01:59.8]} 23. Qf2 {[%clk 0:02:04.7]} 23...
Bd3 {[%clk 0:01:54.5]} 24. Bg5 {[%clk 0:02:03.6]} 24... h6 {[%clk 0:01:48.4]}
25. Bxf6 {[%clk 0:02:01.2]} 25... Bxf6 {[%clk 0:01:49.3]} 26. Rad1 {[%clk
0:01:37.9]} 26... c4 {[%clk 0:01:44.4]} 27. a3 {[%clk 0:01:37]} 27... g5 {[%clk
0:01:37.5]} 28. Bxd3 {[%clk 0:01:24.5]} 28... cxd3 {[%clk 0:01:36.7]} 29. Nd2
{[%clk 0:01:24.5]} 29... Be7 {[%clk 0:01:33.4]} 30. Ngf3 {[%clk 0:01:20.4]}
30... Bc5 {[%clk 0:01:33.3]} 31. Qg3 {[%clk 0:01:20.8]} 31... Bf8 {[%clk
0:01:26.1]} 32. h4 {[%clk 0:01:21]} 32... f6 {[%clk 0:01:25.9]} 33. hxg5 {[%clk
0:01:16.2]} 33... hxg5 {[%clk 0:01:24.7]} 34. Rh1 {[%clk 0:01:15.9]} 34... Rd7
{[%clk 0:01:21.2]} 35. Qh3 {[%clk 0:01:11.9]} 35... Bg7 {[%clk 0:01:19.5]} 36.
Qh7+ {[%clk 0:01:11]} 36... Kf8 {[%clk 0:01:19.8]} 37. Rh6 {[%clk 0:01:06.9]}
37... Rf7 {[%clk 0:01:12]} 38. Rg6 {[%clk 0:00:57.6]} 38... Ne7 {[%clk
0:01:09.9]} 39. Rxg5 {[%clk 0:00:51.5]} 39... fxg5 {[%clk 0:01:07.7]} 40. Nxg5
{[%clk 0:00:52.4]} 40... Ng8 {[%clk 0:00:57.1]} 41. Qg6 {[%clk 0:00:41.8]} 41...
Qb7 {[%clk 0:00:49.3]} 42. Nc4 {[%clk 0:00:33.8]} 42... Rd8 {[%clk 0:00:44.5]}
43. Nd6 {[%clk 0:00:31.1]} 43... Rxd6 {[%clk 0:00:41.9]} 44. Qxd6+ {[%clk
0:00:32]} 44... Re7 {[%clk 0:00:41.8]} 45. Rxd3 {[%clk 0:00:26.4]} 45... Nf6
{[%clk 0:00:40]} 46. Kf3 {[%clk 0:00:21.2]} 46... Kg8 {[%clk 0:00:38.6]} 47. Qb4
{[%clk 0:00:14.7]} 47... Rd7 {[%clk 0:00:32.1]} 48. Qc4+ {[%clk 0:00:14.3]}
48... Kh8 {[%clk 0:00:29]} 49. Ne6 {[%clk 0:00:13.9]} 49... Nxe4 {[%clk
0:00:18.8]} 50. Ke3 {[%clk 0:00:11.9]} 50... Bh6+ {[%clk 0:00:16.8]} 51. g5
{[%clk 0:00:11.7]} 51... Nxg5 {[%clk 0:00:16.9]} 52. Rxd7 {[%clk 0:00:08.8]}
52... Qxd7 {[%clk 0:00:16.5]} 53. Ke2 {[%clk 0:00:09]} 53... Nxe6 {[%clk
0:00:15.1]} 54. fxe6 {[%clk 0:00:09.9]} 54... Qd2+ {[%clk 0:00:12.5]} 55. Kf3
{[%clk 0:00:10.3]} 55... Qd1+ {[%clk 0:00:13]} 56. Ke4 {[%clk 0:00:09.4]} 56...
Qg4+ {[%clk 0:00:12.4]} 57. Kd5 {[%clk 0:00:09.8]} 57... Qxc4+ {[%clk
0:00:10.8]} 58. Kxc4 {[%clk 0:00:10]} 58... Kg7 {[%clk 0:00:11.2]} 59. Kd5
{[%clk 0:00:10.4]} 59... Kf6 {[%clk 0:00:10.1]} 60. c4 {[%clk 0:00:09.3]} 60...
e4 {[%clk 0:00:09.8]} 61. Kxe4 {[%clk 0:00:08.8]} 61... Kxe6 {[%clk 0:00:10.7]}
62. b4 {[%clk 0:00:09.2]} 62... Bc1 {[%clk 0:00:09.8]} 63. a4 {[%clk 0:00:09.3]}
63... Bd2 {[%clk 0:00:09.9]} 64. c5 {[%clk 0:00:10.2]} 64... Bxb4 {[%clk
0:00:07.4]} 65. cxb6 {[%clk 0:00:11.1]} 65... axb6 {[%clk 0:00:08.3]} 66. Kd4
{[%clk 0:00:12]} 66... Kd6 {[%clk 0:00:08.7]} 67. Kc4 {[%clk 0:00:12.9]} 67...
Ba5 {[%clk 0:00:09.2]} 68. Kb5 {[%clk 0:00:13.8]} 68... Kd5 {[%clk 0:00:10]} 69.
Ka6 {[%clk 0:00:14.6]} 69... Kc4 {[%clk 0:00:10.9]} 0-1

[Event "*** Titled Tuesday Blitz"]
[Site "Chess.com"]
[Date "2021.03.30"]
[Round "9"]
[White "erdni1993"]
[Black "PavelChernomordik"]
[Result "0-1"]
[WhiteElo "2498"]
[BlackElo "2393"]
[TimeControl "180+1"]
[EndTime "11:48:24 PDT"]
[Termination "PavelChernomordik won by resignation"]

1. e4 {[%clk 0:02:56.6]} 1... g6 {[%clk 0:02:59.4]} 2. d4 {[%clk 0:02:56.2]}
2... Bg7 {[%clk 0:02:58.8]} 3. c3 {[%clk 0:02:56.7]} 3... d6 {[%clk 0:02:58.1]}
4. Nf3 {[%clk 0:02:54.8]} 4... Nf6 {[%clk 0:02:56.8]} 5. Bd3 {[%clk 0:02:55.3]}
5... c5 {[%clk 0:02:56.2]} 6. O-O {[%clk 0:02:55.4]} 6... O-O {[%clk 0:02:52.8]}
7. Re1 {[%clk 0:02:55]} 7... Bg4 {[%clk 0:02:47.3]} 8. h3 {[%clk 0:02:54.6]}
8... Bxf3 {[%clk 0:02:46.4]} 9. Qxf3 {[%clk 0:02:55.5]} 9... cxd4 {[%clk
0:02:46]} 10. cxd4 {[%clk 0:02:55.5]} 10... Nc6 {[%clk 0:02:45.7]} 11. d5 {[%clk
0:02:52.2]} 11... Ne5 {[%clk 0:02:43.9]} 12. Qe2 {[%clk 0:02:52.7]} 12... Nxd3
{[%clk 0:02:43.3]} 13. Qxd3 {[%clk 0:02:52.5]} 13... Nd7 {[%clk 0:02:42.9]} 14.
Nc3 {[%clk 0:02:48]} 14... Qb6 {[%clk 0:02:36.4]} 15. Be3 {[%clk 0:02:20.8]}
15... Qa6 {[%clk 0:02:27.3]} 16. Qd2 {[%clk 0:02:02.5]} 16... Ne5 {[%clk
0:02:19.2]} 17. b3 {[%clk 0:01:59.7]} 17... Rac8 {[%clk 0:02:14.5]} 18. Bd4
{[%clk 0:01:53.8]} 18... Qd3 {[%clk 0:02:05.3]} 19. Rad1 {[%clk 0:01:40.8]}
19... Qxd2 {[%clk 0:01:47.7]} 20. Rxd2 {[%clk 0:01:41.1]} 20... a6 {[%clk
0:01:41.7]} 21. Ne2 {[%clk 0:01:09.8]} 21... Nd7 {[%clk 0:01:27]} 22. Bxg7
{[%clk 0:01:08.9]} 22... Kxg7 {[%clk 0:01:26.3]} 23. f4 {[%clk 0:01:03]} 23...
Rc5 {[%clk 0:01:15.8]} 24. Nd4 {[%clk 0:00:59.1]} 24... Rfc8 {[%clk 0:01:12.3]}
25. Nf3 {[%clk 0:00:52.6]} 25... Rc2 {[%clk 0:01:04.5]} 26. Ree2 {[%clk
0:00:52.3]} 26... Rxd2 {[%clk 0:00:56.4]} 27. Rxd2 {[%clk 0:00:53.2]} 27... Nf6
{[%clk 0:00:55.3]} 28. e5 {[%clk 0:00:48]} 28... Nh5 {[%clk 0:00:44.7]} 29. Rd4
{[%clk 0:00:40.6]} 29... Rc2 {[%clk 0:00:39.4]} 30. Kh2 {[%clk 0:00:18]} 30...
Rxa2 {[%clk 0:00:34.2]} 31. Rb4 {[%clk 0:00:14]} 31... b5 {[%clk 0:00:30.4]} 32.
h4 {[%clk 0:00:13.5]} 32... Kf8 {[%clk 0:00:25]} 33. Kh3 {[%clk 0:00:13.7]}
33... Ke8 {[%clk 0:00:19]} 34. Re4 {[%clk 0:00:12]} 34... Kd7 {[%clk 0:00:18]}
35. Ng5 {[%clk 0:00:11.5]} 35... f6 {[%clk 0:00:14.9]} 36. exf6 {[%clk 0:00:11]}
36... Nxf6 {[%clk 0:00:14.2]} 37. Rd4 {[%clk 0:00:10.8]} 37... Rb2 {[%clk
0:00:12.8]} 38. Rd3 {[%clk 0:00:10.9]} 38... a5 {[%clk 0:00:11.8]} 39. Ne6
{[%clk 0:00:10.9]} 39... a4 {[%clk 0:00:11.2]} 40. bxa4 {[%clk 0:00:09.1]} 40...
bxa4 {[%clk 0:00:10.9]} 41. Nd4 {[%clk 0:00:09.6]} 41... Nxd5 {[%clk 0:00:09.7]}
42. g3 {[%clk 0:00:10]} 42... Nb4 {[%clk 0:00:08.3]} 43. Ra3 {[%clk 0:00:10.1]}
43... Ra2 {[%clk 0:00:08.1]} 44. Rc3 {[%clk 0:00:09.2]} 44... Nd5 {[%clk
0:00:07.7]} 45. Rc4 {[%clk 0:00:08.5]} 45... Ne3 {[%clk 0:00:07.1]} 46. Rc3
{[%clk 0:00:07.6]} 46... Nf5 {[%clk 0:00:06.4]} 47. Nb5 {[%clk 0:00:07]} 47...
Rb2 {[%clk 0:00:05]} 48. g4 {[%clk 0:00:05.1]} 48... Rxb5 {[%clk 0:00:04.2]} 49.
gxf5 {[%clk 0:00:04.5]} 49... gxf5 {[%clk 0:00:04.5]} 50. Rc2 {[%clk 0:00:04.7]}
50... Ra5 {[%clk 0:00:04.1]} 51. Ra2 {[%clk 0:00:05.6]} 51... a3 {[%clk
0:00:04.4]} 52. Kg3 {[%clk 0:00:06.5]} 52... Kc6 {[%clk 0:00:05.2]} 53. Kf3
{[%clk 0:00:07.4]} 53... Kc5 {[%clk 0:00:05.5]} 54. Ke3 {[%clk 0:00:08.3]} 54...
Kc4 {[%clk 0:00:05.9]} 55. Kd2 {[%clk 0:00:09]} 55... Kb3 {[%clk 0:00:05.5]} 56.
Ra1 {[%clk 0:00:09.7]} 56... a2 {[%clk 0:00:05.5]} 57. Kd3 {[%clk 0:00:10.4]}
57... Kb2 {[%clk 0:00:05.5]} 58. Rg1 {[%clk 0:00:09.8]} 58... a1=Q {[%clk
0:00:05.2]} 59. Rg2+ {[%clk 0:00:10.7]} 59... Kb3 {[%clk 0:00:04.7]} 60. Rd2
{[%clk 0:00:10.5]} 60... Rd5+ {[%clk 0:00:05]} 61. Ke2 {[%clk 0:00:10.5]} 61...
Qc3 {[%clk 0:00:05.3]} 62. Rxd5 {[%clk 0:00:10.3]} 62... Qc4+ {[%clk 0:00:05.4]}
63. Rd3+ {[%clk 0:00:10.9]} 63... Kb4 {[%clk 0:00:05.5]} 64. Kf2 {[%clk
0:00:11.8]} 64... Qxd3 {[%clk 0:00:05.3]} 65. Kg2 {[%clk 0:00:12]} 65... Qe4+
{[%clk 0:00:05.1]} 66. Kf2 {[%clk 0:00:12.9]} 66... d5 {[%clk 0:00:04.9]} 67.
Kg3 {[%clk 0:00:13]} 67... d4 {[%clk 0:00:05.8]} 68. Kf2 {[%clk 0:00:13.9]}
68... d3 {[%clk 0:00:06.1]} 0-1

[Event "*** Titled Tuesday Blitz"]
[Site "Chess.com"]
[Date "2021.03.30"]
[Round "9"]
[White "karwowskikacper"]
[Black "Sofiia_Hryzlova"]
[Result "1/2-1/2"]
[WhiteElo "2433"]
[BlackElo "2331"]
[TimeControl "180+1"]
[EndTime "11:48:32 PDT"]
[Termination "Game drawn - insufficient material"]

1. e4 {[%clk 0:03:00.9]} 1... e6 {[%clk 0:02:56]} 2. Qe2 {[%clk 0:02:52.6]} 2...
c5 {[%clk 0:02:49.6]} 3. g3 {[%clk 0:02:50.2]} 3... Nc6 {[%clk 0:02:49.1]} 4. c3
{[%clk 0:02:49.7]} 4... g6 {[%clk 0:02:48.8]} 5. Bg2 {[%clk 0:02:49.4]} 5... Bg7
{[%clk 0:02:48.7]} 6. f4 {[%clk 0:02:49.4]} 6... Nge7 {[%clk 0:02:47.4]} 7. d3
{[%clk 0:02:47.2]} 7... Rb8 {[%clk 0:02:40.4]} 8. Be3 {[%clk 0:02:46.3]} 8... d6
{[%clk 0:02:40.2]} 9. Nd2 {[%clk 0:02:38.6]} 9... b5 {[%clk 0:02:39.1]} 10. Ngf3
{[%clk 0:02:18.9]} 10... b4 {[%clk 0:02:28.6]} 11. d4 {[%clk 0:02:17.7]} 11...
O-O {[%clk 0:02:22.1]} 12. O-O {[%clk 0:02:15.7]} 12... d5 {[%clk 0:02:16.5]}
13. dxc5 {[%clk 0:01:45.3]} 13... bxc3 {[%clk 0:02:10.8]} 14. bxc3 {[%clk
0:01:46.2]} 14... Bxc3 {[%clk 0:02:07.7]} 15. Rab1 {[%clk 0:01:30]} 15... Rxb1
{[%clk 0:02:02.4]} 16. Rxb1 {[%clk 0:01:29.7]} 16... Bg7 {[%clk 0:02:02.2]} 17.
exd5 {[%clk 0:00:49]} 17... Nxd5 {[%clk 0:01:59.6]} 18. Ne4 {[%clk 0:00:34.7]}
18... f5 {[%clk 0:01:45.4]} 19. Nd6 {[%clk 0:00:30.8]} 19... Nc3 {[%clk
0:01:41.7]} 20. Qd3 {[%clk 0:00:23.2]} 20... Nxb1 {[%clk 0:01:36.5]} 21. Qxb1
{[%clk 0:00:24.1]} 21... Qa5 {[%clk 0:01:18.2]} 22. Ng5 {[%clk 0:00:13.7]} 22...
Qc3 {[%clk 0:01:10.7]} 23. Bf2 {[%clk 0:00:12]} 23... Nd4 {[%clk 0:01:07.4]} 24.
Nxc8 {[%clk 0:00:12]} 24... Rxc8 {[%clk 0:01:03.2]} 25. Qb7 {[%clk 0:00:11.9]}
25... Qxc5 {[%clk 0:00:41.9]} 26. Qf7+ {[%clk 0:00:11.5]} 26... Kh8 {[%clk
0:00:41.7]} 27. Nxe6 {[%clk 0:00:11.6]} 27... Qc1+ {[%clk 0:00:39.3]} 28. Bf1
{[%clk 0:00:12.1]} 28... Nxe6 {[%clk 0:00:34.1]} 29. Qxe6 {[%clk 0:00:11.6]}
29... Rb8 {[%clk 0:00:27.2]} 30. Bxa7 {[%clk 0:00:10.2]} 30... Ra8 {[%clk
0:00:23]} 31. Be3 {[%clk 0:00:07.7]} 31... Qa1 {[%clk 0:00:20.6]} 32. Qd5 {[%clk
0:00:04]} 32... Re8 {[%clk 0:00:20]} 33. Bf2 {[%clk 0:00:03.8]} 33... Bf6 {[%clk
0:00:18.9]} 34. Kg2 {[%clk 0:00:04]} 34... Qb2 {[%clk 0:00:17.4]} 35. Bc4 {[%clk
0:00:04.2]} 35... Rb8 {[%clk 0:00:16.1]} 36. Qe6 {[%clk 0:00:03.9]} 36... Bd4
{[%clk 0:00:15.1]} 37. Qe1 {[%clk 0:00:02.5]} 37... Qxf2+ {[%clk 0:00:14.5]} 38.
Qxf2 {[%clk 0:00:03.4]} 38... Bxf2 {[%clk 0:00:14.7]} 39. Kxf2 {[%clk
0:00:04.3]} 39... Kg7 {[%clk 0:00:15.2]} 40. a4 {[%clk 0:00:04.3]} 40... Rb4
{[%clk 0:00:15.2]} 41. Bb5 {[%clk 0:00:04.6]} 41... Kf6 {[%clk 0:00:15.3]} 42.
Kf3 {[%clk 0:00:05]} 42... Ke7 {[%clk 0:00:15.2]} 43. h3 {[%clk 0:00:03.9]}
43... Kd6 {[%clk 0:00:15.4]} 44. g4 {[%clk 0:00:04.2]} 44... Kc5 {[%clk
0:00:13.6]} 45. gxf5 {[%clk 0:00:03.9]} 45... gxf5 {[%clk 0:00:14.5]} 46. Kg3
{[%clk 0:00:04.1]} 46... Kd4 {[%clk 0:00:14.1]} 47. Kh4 {[%clk 0:00:04.5]} 47...
Ke4 {[%clk 0:00:13.7]} 48. Kg5 {[%clk 0:00:04.6]} 48... Rb3 {[%clk 0:00:13.3]}
49. Bc6+ {[%clk 0:00:04.1]} 49... Ke3 {[%clk 0:00:10.9]} 50. Kxf5 {[%clk
0:00:05]} 50... Rb4 {[%clk 0:00:10.7]} 51. Bb5 {[%clk 0:00:04]} 51... Rxf4+
{[%clk 0:00:10.9]} 52. Kg5 {[%clk 0:00:04.8]} 52... Kf3 {[%clk 0:00:09.6]} 53.
h4 {[%clk 0:00:05.3]} 53... Kg3 {[%clk 0:00:09.5]} 54. h5 {[%clk 0:00:05.6]}
54... Rg4+ {[%clk 0:00:07.9]} 55. Kh6 {[%clk 0:00:05.9]} 55... Rh4 {[%clk
0:00:08]} 56. Kxh7 {[%clk 0:00:05]} 56... Rxh5+ {[%clk 0:00:07.8]} 57. Kg6
{[%clk 0:00:05.9]} 57... Rc5 {[%clk 0:00:07.9]} 58. Kf6 {[%clk 0:00:06.2]} 58...
Rc1 {[%clk 0:00:08.4]} 59. Ke5 {[%clk 0:00:06.6]} 59... Kf3 {[%clk 0:00:08.2]}
60. Kd4 {[%clk 0:00:07.1]} 60... Kf4 {[%clk 0:00:08.1]} 61. Kd5 {[%clk
0:00:07.1]} 61... Ra1 {[%clk 0:00:07.6]} 62. Kc4 {[%clk 0:00:06.9]} 62... Ke3
{[%clk 0:00:08]} 63. Kb4 {[%clk 0:00:06.2]} 63... Ke4 {[%clk 0:00:08.4]} 64. a5
{[%clk 0:00:06.7]} 64... Rb1+ {[%clk 0:00:08.7]} 65. Kc5 {[%clk 0:00:07]} 65...
Ra1 {[%clk 0:00:07.9]} 66. a6 {[%clk 0:00:07.2]} 66... Ke5 {[%clk 0:00:08.5]}
67. Kb6 {[%clk 0:00:06.6]} 67... Kd6 {[%clk 0:00:08.7]} 68. a7 {[%clk
0:00:07.1]} 68... Ra2 {[%clk 0:00:06.6]} 69. Ba6 {[%clk 0:00:06.8]} 69... Rb2+
{[%clk 0:00:04.7]} 70. Bb5 {[%clk 0:00:02.6]} 70... Ra2 {[%clk 0:00:04.4]} 71.
Kb7 {[%clk 0:00:03.2]} 71... Rxa7+ {[%clk 0:00:03.8]} 72. Kxa7 {[%clk
0:00:04.1]} 1/2-1/2

[Event "*** Titled Tuesday Blitz"]
[Site "Chess.com"]
[Date "2021.03.30"]
[Round "9"]
[White "Gabix_94"]
[Black "Arvids_Andrejevs"]
[Result "1-0"]
[WhiteElo "2759"]
[BlackElo "2442"]
[TimeControl "180+1"]
[EndTime "11:48:45 PDT"]
[Termination "Gabix_94 won by resignation"]

1. Nf3 {[%clk 0:03:00.9]} 1... d5 {[%clk 0:02:59.7]} 2. e3 {[%clk 0:02:59]} 2...
e6 {[%clk 0:03:00]} 3. c4 {[%clk 0:02:58.3]} 3... Nf6 {[%clk 0:03:00.2]} 4. b3
{[%clk 0:02:57.6]} 4... Be7 {[%clk 0:03:00.4]} 5. Bb2 {[%clk 0:02:58]} 5... O-O
{[%clk 0:03:01]} 6. Nc3 {[%clk 0:02:58.4]} 6... c5 {[%clk 0:03:00.9]} 7. cxd5
{[%clk 0:02:57.7]} 7... Nxd5 {[%clk 0:03:00.5]} 8. Nxd5 {[%clk 0:02:56.5]} 8...
exd5 {[%clk 0:02:58.8]} 9. Qb1 {[%clk 0:02:54.8]} 9... Bf6 {[%clk 0:02:50.2]}
10. Bd3 {[%clk 0:02:47]} 10... Bxb2 {[%clk 0:02:44.3]} 11. Qxb2 {[%clk
0:02:46.6]} 11... Nc6 {[%clk 0:02:42.4]} 12. Rc1 {[%clk 0:02:42.8]} 12... b6
{[%clk 0:02:41.5]} 13. Bb5 {[%clk 0:02:38.5]} 13... Bd7 {[%clk 0:02:28.6]} 14.
O-O {[%clk 0:02:32.9]} 14... a6 {[%clk 0:02:26]} 15. Bxc6 {[%clk 0:02:32]} 15...
Bxc6 {[%clk 0:02:26.9]} 16. d4 {[%clk 0:02:32.8]} 16... Qd6 {[%clk 0:02:23.3]}
17. Qa3 {[%clk 0:02:26.2]} 17... Bb5 {[%clk 0:02:06]} 18. Rfe1 {[%clk
0:02:21.4]} 18... Rac8 {[%clk 0:02:03.9]} 19. h3 {[%clk 0:02:11.8]} 19... Rfd8
{[%clk 0:02:03.2]} 20. Rc3 {[%clk 0:02:08.8]} 20... Qf8 {[%clk 0:01:54.5]} 21.
Rec1 {[%clk 0:02:05.3]} 21... c4 {[%clk 0:01:51.2]} 22. Qxf8+ {[%clk 0:02:06.2]}
22... Kxf8 {[%clk 0:01:49.9]} 23. Nd2 {[%clk 0:02:03]} 23... Rc7 {[%clk
0:01:32.7]} 24. f3 {[%clk 0:01:58.5]} 24... Rdc8 {[%clk 0:01:31.9]} 25. Kf2
{[%clk 0:01:57.9]} 25... Ke7 {[%clk 0:01:28.9]} 26. e4 {[%clk 0:01:56.9]} 26...
Kd6 {[%clk 0:01:27.4]} 27. bxc4 {[%clk 0:01:34.8]} 27... Bxc4 {[%clk 0:01:23.6]}
28. a3 {[%clk 0:01:30.9]} 28... b5 {[%clk 0:01:22.3]} 29. Ke3 {[%clk 0:01:29.8]}
29... f6 {[%clk 0:01:16]} 30. g4 {[%clk 0:01:26.9]} 30... g5 {[%clk 0:01:12.5]}
31. h4 {[%clk 0:01:23.9]} 31... h6 {[%clk 0:01:10]} 32. hxg5 {[%clk 0:01:23.6]}
32... hxg5 {[%clk 0:01:10.2]} 33. Rh1 {[%clk 0:01:19.9]} 33... a5 {[%clk
0:01:10.2]} 34. Rh6 {[%clk 0:01:19.2]} 34... Ke7 {[%clk 0:01:07.5]} 35. Rh7+
{[%clk 0:01:09.9]} 35... Kd6 {[%clk 0:01:06.4]} 36. Rh6 {[%clk 0:01:10.3]} 36...
Ke7 {[%clk 0:01:06.3]} 37. Rc1 {[%clk 0:01:10.9]} 37... b4 {[%clk 0:01:05.2]}
38. axb4 {[%clk 0:01:10.4]} 38... axb4 {[%clk 0:01:06.1]} 39. Rch1 {[%clk
0:01:08.5]} 39... b3 {[%clk 0:01:03.7]} 40. Rh7+ {[%clk 0:01:08.5]} 40... Ke6
{[%clk 0:01:03.3]} 41. e5 {[%clk 0:01:09]} 41... Rxh7 {[%clk 0:00:59.9]} 42.
Rxh7 {[%clk 0:01:09.9]} 42... fxe5 {[%clk 0:00:57.6]} 43. Rh6+ {[%clk 0:01:10]}
43... Kf7 {[%clk 0:00:55.3]} 44. dxe5 {[%clk 0:01:10.9]} 44... b2 {[%clk
0:00:51.7]} 45. Rb6 {[%clk 0:01:09.3]} 45... Ra8 {[%clk 0:00:38.7]} 46. Rxb2
{[%clk 0:01:07.4]} 46... Ra3+ {[%clk 0:00:38.6]} 47. Kf2 {[%clk 0:00:52.2]}
47... Ke6 {[%clk 0:00:38.6]} 48. Kg3 {[%clk 0:00:48.4]} 48... Kxe5 {[%clk
0:00:37.8]} 49. Rb8 {[%clk 0:00:46.3]} 49... Kd4 {[%clk 0:00:34]} 50. Rg8 {[%clk
0:00:43.3]} 50... Rd3 {[%clk 0:00:33.4]} 51. Nf1 {[%clk 0:00:41]} 51... Rd1
{[%clk 0:00:28.4]} 52. Nh2 {[%clk 0:00:41.5]} 52... Ke3 {[%clk 0:00:24.6]} 53.
Rxg5 {[%clk 0:00:39.5]} 53... Rg1+ {[%clk 0:00:24]} 54. Kh3 {[%clk 0:00:39.9]}
54... d4 {[%clk 0:00:20.5]} 55. Re5+ {[%clk 0:00:40.1]} 55... Kf4 {[%clk
0:00:20.5]} 56. Re4+ {[%clk 0:00:40.1]} 56... Kg5 {[%clk 0:00:19.3]} 57. Rxd4
{[%clk 0:00:40.5]} 57... Be6 {[%clk 0:00:17.8]} 58. f4+ {[%clk 0:00:40]} 58...
Kg6 {[%clk 0:00:16.3]} 59. Rd6 {[%clk 0:00:39]} 59... Kf7 {[%clk 0:00:16.4]} 60.
f5 {[%clk 0:00:38]} 60... Bc8 {[%clk 0:00:16.3]} 61. Nf3 {[%clk 0:00:38]} 61...
Rf1 {[%clk 0:00:15]} 62. Ng5+ {[%clk 0:00:38.4]} 62... Kg7 {[%clk 0:00:15.1]}
63. Rg6+ {[%clk 0:00:38.5]} 63... Kh8 {[%clk 0:00:14.6]} 64. Nf7+ {[%clk
0:00:33.8]} 64... Kh7 {[%clk 0:00:14.3]} 65. Ng5+ {[%clk 0:00:34.7]} 65... Kh8
{[%clk 0:00:14.6]} 66. Rc6 {[%clk 0:00:34.8]} 66... Bd7 {[%clk 0:00:13.2]} 67.
Rc7 {[%clk 0:00:34.4]} 67... Bxf5 {[%clk 0:00:12.7]} 68. Nf7+ {[%clk 0:00:29.5]}
68... Kg7 {[%clk 0:00:09.5]} 69. Nd6+ {[%clk 0:00:27.9]} 69... Kf6 {[%clk
0:00:09.5]} 70. Nxf5 {[%clk 0:00:27.3]} 70... Kg5 {[%clk 0:00:08.7]} 71. Rg7+
{[%clk 0:00:26.8]} 71... Kf4 {[%clk 0:00:09.1]} 72. Ng3 {[%clk 0:00:25]} 72...
Ra1 {[%clk 0:00:07.8]} 73. Rf7+ {[%clk 0:00:24.8]} 73... Kg5 {[%clk 0:00:08.3]}
74. Rf5+ {[%clk 0:00:25]} 74... Kg6 {[%clk 0:00:09]} 75. Rb5 {[%clk 0:00:25.2]}
75... Ra2 {[%clk 0:00:08.4]} 76. Nh5 {[%clk 0:00:23.3]} 76... Ra3+ {[%clk
0:00:07.2]} 77. Kh4 {[%clk 0:00:23.7]} 77... Ra2 {[%clk 0:00:08.1]} 78. Rb6+
{[%clk 0:00:24.2]} 78... Kh7 {[%clk 0:00:08.2]} 79. Nf6+ {[%clk 0:00:23.9]}
79... Kg6 {[%clk 0:00:08.1]} 80. Ne4+ {[%clk 0:00:24.1]} 80... Kh7 {[%clk
0:00:08.2]} 81. Kh5 {[%clk 0:00:23.8]} 81... Rh2+ {[%clk 0:00:07.5]} 82. Kg5
{[%clk 0:00:24.3]} 82... Re2 {[%clk 0:00:08.4]} 83. Rb7+ {[%clk 0:00:24.6]}
83... Kg8 {[%clk 0:00:07.9]} 84. Nf6+ {[%clk 0:00:24.4]} 84... Kf8 {[%clk
0:00:08.2]} 85. Kg6 {[%clk 0:00:22.6]} 1-0